{"text_format":"1","workbook":"xlsx","n_sheets":6,"sheets":["基礎データ","内訳データ","請求書鑑","請求書内訳","印座","支払先表示"],"not_rendered":{"charts":0,"images":6,"macros":1,"external_links":0,"defined_names":4,"comments":0,"pivot_tables":0},"unopened":[],"bounds":{"document_bytes":16777216,"sheet_cells":100000,"rows_first":2000,"rows_last":500,"rows_between":2000,"halvings":0,"cell_chars":16384,"cell_head_chars":4096},"cells_cut":0,"cells_raw":0,"read":"whole","date_system":"1900"}

{"sheet":"基礎データ","index":0,"n_rows":18,"n_cols":6,"rows_kept":18,"cut":false,"hidden":false,"merged":[]}
["清水建設株式会社　指定書式請求書　臨時支払用",null,null,null,null,"ver rs-1.20"]
[null,null,null,null,"（消費税四捨五入版）"]
["■請求基礎データ　入力欄"]
[null,null,null,null,"（入力例）"]
[null,"支払先コード",null,null,"AA0001"]
[null,"会社名１",null,null,"〇〇〇〇株式会社"]
[null,"会社名２",null,null,"〇〇支店"]
[null,"郵便番号",null,null,"100-0000"]
[null,"住所１",null,null,"東京都中央区京橋2-16-1"]
[null,"住所２",null,null,"□□□□ビル"]
[null,"電話番号",null,null,"03-0000-0000"]
[null,"登録番号",null,null,"Ｔ1234567890123"]
[null,null,null,null,"自由入力欄"]
[]
[null,"請求年月日",null,null,"2019-01-04"]
[null,"作業所名",null,null,"△△△△ビル新築工事"]
[null,"会計口座名称",null,null,"△△△△ビル"]
[null,"会計口座番号",null,null,12345]

{"sheet":"内訳データ","index":1,"n_rows":1009,"n_cols":12,"rows_kept":1009,"cut":false,"hidden":false,"merged":[[6,7,6,8],[0,7,0,8],[2,7,2,8],[1,7,1,8],[3,7,3,8],[4,7,4,8],[5,7,5,8]]}
["■請求内訳データ　入力欄",null,null,null,null,null,null,{"$f":"SUM($K$12:$K$1008)","v":0}]
[null,null,null,null,null,null,null,"税抜金額",null,"消費税等","税込金額"]
[null,null,null,null,null,null,"請求金額　合計",{"$f":"SUM(H4:I7)","v":0},null,{"$f":"SUM(J4:J7)","v":0},{"$f":"SUM(K4:K7)","v":0}]
[null,null,null,null,null,null,"　うち税率8%　計",{"$f":"SUMIF($L$12:$L$1008,\"8%\",$K$12:$K$1008)","v":0},null,{"$f":"ROUND(H4*0.08,0)","v":0},{"$f":"SUM(H4:J4)","v":0}]
[null,null,null,null,null,null,"　うち税率10%　計",{"$f":"SUMIF($L$12:$L$1008,\"10%\",$K$12:$K$1008)","v":0},null,{"$f":"ROUND(H5*0.1,0)","v":0},{"$f":"SUM(H5:J5)","v":0}]
[null,null,null,null,null,null,"　うち税率8%軽減　計",{"$f":"SUMIF($L$12:$L$1008,\"8%軽減\",$K$12:$K$1008)","v":0},null,{"$f":"ROUND(H6*0.08,0)","v":0},{"$f":"SUM(H6:J6)","v":0}]
[null,null,null,null,null,null,"　うち税率0%　計",{"$f":"SUMIF($L$12:$L$1008,\"非課税\",$K$12:$K$1008)+SUMIF($L$12:$L$1008,\"不課税\",$K$12:$K$1008)+SUMIF($L$12:$L$1008,\"免税\",$K$12:$K$1008)","v":0},null,{"$f":"ROUND(H7*0,0)","v":0},{"$f":"SUM(H7:J7)","v":0}]
[]
[]
[null,"空ｾﾙ","頁","印刷",null,null,"税区分に空欄の箇所があります。入力してください。"]
[null,null,null,null,"日付","品名・品番","仕様","数量","単位","単価","金額（税抜）","税区分"]
[1,{"$f":"COUNTBLANK(E12:L12)","v":8},1,null,null,null,null,null,null,null,{"$f":"IF(H12*J12=0,\"\",ROUND(H12*J12,0))","v":""}]
[2,{"$f":"COUNTBLANK(E13:L13)","v":8},1,null,null,null,null,null,null,null,""]
[3,8,1,null,null,null,null,null,null,null,""]
[4,8,1,null,null,null,null,null,null,null,""]
[5,8,1,null,null,null,null,null,null,null,""]
[6,8,1,null,null,null,null,null,null,null,""]
[7,8,1,null,null,null,null,null,null,null,""]
[8,8,1,null,null,null,null,null,null,null,""]
[9,8,1,null,null,null,null,null,null,null,""]
[10,8,1,null,null,null,null,null,null,null,""]
[11,8,1,null,null,null,null,null,null,null,""]
[12,8,1,null,null,null,null,null,null,null,""]
[13,8,1,null,null,null,null,null,null,null,""]
[14,8,1,null,null,null,null,null,null,null,""]
[15,8,1,null,null,null,null,null,null,null,""]
[16,8,1,null,null,null,null,null,null,null,""]
[17,8,1,null,null,null,null,null,null,null,""]
[18,8,1,null,null,null,null,null,null,null,""]
[19,8,1,null,null,null,null,null,null,null,""]
[20,8,1,null,null,null,null,null,null,null,""]
[21,8,1,null,null,null,null,null,null,null,""]
[22,8,1,{"$f":"IF(SUM(B12:B33)=176,0,1)","v":0},null,null,null,null,null,null,""]
[23,8,2,null,null,null,null,null,null,null,""]
[24,8,2,null,null,null,null,null,null,null,""]
[25,8,2,null,null,null,null,null,null,null,""]
[26,8,2,null,null,null,null,null,null,null,""]
[27,8,2,null,null,null,null,null,null,null,""]
[28,{"$f":"COUNTBLANK(E39:L39)","v":8},2,null,null,null,null,null,null,null,""]
[29,{"$f":"COUNTBLANK(E40:L40)","v":8},2,null,null,null,null,null,null,null,""]
[30,{"$f":"COUNTBLANK(E41:L41)","v":8},2,null,null,null,null,null,null,null,""]
[31,8,2,null,null,null,null,null,null,null,""]
[32,8,2,null,null,null,null,null,null,null,""]
[33,8,2,null,null,null,null,null,null,null,""]
[34,8,2,null,null,null,null,null,null,null,""]
[35,8,2,null,null,null,null,null,null,null,""]
[36,8,2,null,null,null,null,null,null,null,""]
[37,8,2,null,null,null,null,null,null,null,""]
[38,8,2,null,null,null,null,null,null,null,""]
[39,8,2,null,null,null,null,null,null,null,""]
[40,8,2,null,null,null,null,null,null,null,""]
[41,8,2,null,null,null,null,null,null,null,""]
[42,8,2,null,null,null,null,null,null,null,""]
[43,8,2,null,null,null,null,null,null,null,""]
[44,8,2,null,null,null,null,null,null,null,""]
[45,8,2,null,null,null,null,null,null,null,""]
[46,8,2,null,null,null,null,null,null,null,""]
[47,8,2,null,null,null,null,null,null,null,""]
[48,8,2,null,null,null,null,null,null,null,""]
[49,8,2,null,null,null,null,null,null,null,""]
[50,8,2,null,null,null,null,null,null,null,""]
[51,8,2,null,null,null,null,null,null,null,""]
[52,8,2,null,null,null,null,null,null,null,""]
[53,8,2,null,null,null,null,null,null,null,""]
[54,8,2,null,null,null,null,null,null,null,""]
[55,8,2,null,null,null,null,null,null,null,""]
[56,8,2,null,null,null,null,null,null,null,""]
[57,8,2,null,null,null,null,null,null,null,""]
[58,8,2,null,null,null,null,null,null,null,""]
[59,8,2,null,null,null,null,null,null,null,""]
[60,8,2,null,null,null,null,null,null,null,""]
[61,8,2,{"$f":"IF(SUM(B34:B72)=312,0,1)","v":0},null,null,null,null,null,null,""]
[62,8,3,null,null,null,null,null,null,null,""]
[63,8,3,null,null,null,null,null,null,null,{"$f":"IF(H74*J74=0,\"\",ROUND(H74*J74,0))","v":""}]
[64,{"$f":"COUNTBLANK(E75:L75)","v":8},3,null,null,null,null,null,null,null,""]
[65,8,3,null,null,null,null,null,null,null,""]
[66,8,3,null,null,null,null,null,null,null,""]
[67,8,3,null,null,null,null,null,null,null,""]
[68,8,3,null,null,null,null,null,null,null,""]
[69,8,3,null,null,null,null,null,null,null,""]
[70,8,3,null,null,null,null,null,null,null,""]
[71,8,3,null,null,null,null,null,null,null,""]
[72,8,3,null,null,null,null,null,null,null,""]
[73,8,3,null,null,null,null,null,null,null,{"$f":"IF(H84*J84=0,\"\",ROUND(H84*J84,0))","v":""}]
[74,8,3,null,null,null,null,null,null,null,""]
[75,8,3,null,null,null,null,null,null,null,""]
[76,8,3,null,null,null,null,null,null,null,""]
[77,8,3,null,null,null,null,null,null,null,""]
[78,8,3,null,null,null,null,null,null,null,""]
[79,8,3,null,null,null,null,null,null,null,""]
[80,8,3,null,null,null,null,null,null,null,""]
[81,8,3,null,null,null,null,null,null,null,""]
[82,8,3,null,null,null,null,null,null,null,""]
[83,8,3,null,null,null,null,null,null,null,""]
[84,8,3,null,null,null,null,null,null,null,{"$f":"IF(H95*J95=0,\"\",ROUND(H95*J95,0))","v":""}]
[85,8,3,null,null,null,null,null,null,null,""]
[86,8,3,null,null,null,null,null,null,null,""]
[87,8,3,null,null,null,null,null,null,null,""]
[88,8,3,null,null,null,null,null,null,null,""]
[89,8,3,null,null,null,null,null,null,null,""]
[90,8,3,null,null,null,null,null,null,null,""]
[91,8,3,null,null,null,null,null,null,null,""]
[92,8,3,null,null,null,null,null,null,null,""]
[93,8,3,null,null,null,null,null,null,null,""]
[94,8,3,null,null,null,null,null,null,null,""]
[95,8,3,null,null,null,null,null,null,null,""]
[96,8,3,null,null,null,null,null,null,null,""]
[97,8,3,null,null,null,null,null,null,null,""]
[98,8,3,null,null,null,null,null,null,null,""]
[99,8,3,null,null,null,null,null,null,null,""]
[100,8,3,{"$f":"IF(SUM(B73:B111)=312,0,1)","v":0},null,null,null,null,null,null,""]
[101,8,4,null,null,null,null,null,null,null,""]
[102,8,4,null,null,null,null,null,null,null,""]
[103,8,4,null,null,null,null,null,null,null,""]
[104,8,4,null,null,null,null,null,null,null,""]
[105,8,4,null,null,null,null,null,null,null,""]
[106,8,4,null,null,null,null,null,null,null,""]
[107,8,4,null,null,null,null,null,null,null,""]
[108,8,4,null,null,null,null,null,null,null,""]
[109,8,4,null,null,null,null,null,null,null,""]
[110,8,4,null,null,null,null,null,null,null,""]
[111,8,4,null,null,null,null,null,null,null,""]
[112,8,4,null,null,null,null,null,null,null,""]
[113,8,4,null,null,null,null,null,null,null,""]
[114,8,4,null,null,null,null,null,null,null,""]
[115,8,4,null,null,null,null,null,null,null,""]
[116,8,4,null,null,null,null,null,null,null,""]
[117,8,4,null,null,null,null,null,null,null,""]
[118,8,4,null,null,null,null,null,null,null,""]
[119,8,4,null,null,null,null,null,null,null,""]
[120,8,4,null,null,null,null,null,null,null,""]
[121,8,4,null,null,null,null,null,null,null,""]
[122,8,4,null,null,null,null,null,null,null,""]
[123,8,4,null,null,null,null,null,null,null,""]
[124,8,4,null,null,null,null,null,null,null,""]
[125,8,4,null,null,null,null,null,null,null,""]
[126,8,4,null,null,null,null,null,null,null,""]
[127,8,4,null,null,null,null,null,null,null,""]
[128,{"$f":"COUNTBLANK(E139:L139)","v":8},4,null,null,null,null,null,null,null,""]
[129,8,4,null,null,null,null,null,null,null,""]
[130,8,4,null,null,null,null,null,null,null,""]
[131,8,4,null,null,null,null,null,null,null,""]
[132,8,4,null,null,null,null,null,null,null,""]
[133,8,4,null,null,null,null,null,null,null,""]
[134,8,4,null,null,null,null,null,null,null,""]
[135,8,4,null,null,null,null,null,null,null,""]
[136,8,4,null,null,null,null,null,null,null,""]
[137,8,4,null,null,null,null,null,null,null,""]
[138,8,4,null,null,null,null,null,null,null,""]
[139,8,4,{"$f":"IF(SUM(B112:B150)=312,0,1)","v":0},null,null,null,null,null,null,""]
[140,8,5,null,null,null,null,null,null,null,""]
[141,8,5,null,null,null,null,null,null,null,""]
[142,8,5,null,null,null,null,null,null,null,""]
[143,8,5,null,null,null,null,null,null,null,""]
[144,8,5,null,null,null,null,null,null,null,""]
[145,8,5,null,null,null,null,null,null,null,""]
[146,8,5,null,null,null,null,null,null,null,""]
[147,8,5,null,null,null,null,null,null,null,""]
[148,8,5,null,null,null,null,null,null,null,{"$f":"IF(H159*J159=0,\"\",ROUND(H159*J159,0))","v":""}]
[149,8,5,null,null,null,null,null,null,null,""]
[150,8,5,null,null,null,null,null,null,null,""]
[151,8,5,null,null,null,null,null,null,null,""]
[152,8,5,null,null,null,null,null,null,null,""]
[153,8,5,null,null,null,null,null,null,null,""]
[154,8,5,null,null,null,null,null,null,null,""]
[155,8,5,null,null,null,null,null,null,null,""]
[156,8,5,null,null,null,null,null,null,null,""]
[157,8,5,null,null,null,null,null,null,null,""]
[158,8,5,null,null,null,null,null,null,null,""]
[159,8,5,null,null,null,null,null,null,null,""]
[160,8,5,null,null,null,null,null,null,null,""]
[161,8,5,null,null,null,null,null,null,null,""]
[162,8,5,null,null,null,null,null,null,null,""]
[163,8,5,null,null,null,null,null,null,null,""]
[164,8,5,null,null,null,null,null,null,null,""]
[165,8,5,null,null,null,null,null,null,null,""]
[166,8,5,null,null,null,null,null,null,null,""]
[167,8,5,null,null,null,null,null,null,null,""]
[168,8,5,null,null,null,null,null,null,null,""]
[169,8,5,null,null,null,null,null,null,null,""]
[170,8,5,null,null,null,null,null,null,null,""]
[171,8,5,null,null,null,null,null,null,null,""]
[172,8,5,null,null,null,null,null,null,null,""]
[173,8,5,null,null,null,null,null,null,null,""]
[174,8,5,null,null,null,null,null,null,null,""]
[175,8,5,null,null,null,null,null,null,null,""]
[176,8,5,null,null,null,null,null,null,null,""]
[177,8,5,null,null,null,null,null,null,null,""]
[178,8,5,{"$f":"IF(SUM(B151:B189)=312,0,1)","v":0},null,null,null,null,null,null,""]
[179,8,6,null,null,null,null,null,null,null,""]
[180,8,6,null,null,null,null,null,null,null,""]
[181,8,6,null,null,null,null,null,null,null,""]
[182,8,6,null,null,null,null,null,null,null,""]
[183,8,6,null,null,null,null,null,null,null,""]
[184,8,6,null,null,null,null,null,null,null,""]
[185,8,6,null,null,null,null,null,null,null,""]
[186,8,6,null,null,null,null,null,null,null,""]
[187,8,6,null,null,null,null,null,null,null,""]
[188,8,6,null,null,null,null,null,null,null,""]
[189,8,6,null,null,null,null,null,null,null,""]
[190,8,6,null,null,null,null,null,null,null,""]
[191,8,6,null,null,null,null,null,null,null,""]
[192,{"$f":"COUNTBLANK(E203:L203)","v":8},6,null,null,null,null,null,null,null,""]
[193,8,6,null,null,null,null,null,null,null,""]
[194,8,6,null,null,null,null,null,null,null,""]
[195,8,6,null,null,null,null,null,null,null,""]
[196,8,6,null,null,null,null,null,null,null,""]
[197,8,6,null,null,null,null,null,null,null,""]
[198,8,6,null,null,null,null,null,null,null,""]
[199,8,6,null,null,null,null,null,null,null,""]
[200,8,6,null,null,null,null,null,null,null,""]
[201,8,6,null,null,null,null,null,null,null,""]
[202,8,6,null,null,null,null,null,null,null,""]
[203,8,6,null,null,null,null,null,null,null,""]
[204,8,6,null,null,null,null,null,null,null,""]
[205,8,6,null,null,null,null,null,null,null,""]
[206,8,6,null,null,null,null,null,null,null,""]
[207,8,6,null,null,null,null,null,null,null,""]
[208,8,6,null,null,null,null,null,null,null,""]
[209,8,6,null,null,null,null,null,null,null,""]
[210,8,6,null,null,null,null,null,null,null,""]
[211,8,6,null,null,null,null,null,null,null,""]
[212,8,6,null,null,null,null,null,null,null,{"$f":"IF(H223*J223=0,\"\",ROUND(H223*J223,0))","v":""}]
[213,8,6,null,null,null,null,null,null,null,""]
[214,8,6,null,null,null,null,null,null,null,""]
[215,8,6,null,null,null,null,null,null,null,""]
[216,8,6,null,null,null,null,null,null,null,""]
[217,8,6,{"$f":"IF(SUM(B190:B228)=312,0,1)","v":0},null,null,null,null,null,null,""]
[218,8,7,null,null,null,null,null,null,null,""]
[219,8,7,null,null,null,null,null,null,null,""]
[220,8,7,null,null,null,null,null,null,null,""]
[221,8,7,null,null,null,null,null,null,null,""]
[222,8,7,null,null,null,null,null,null,null,""]
[223,8,7,null,null,null,null,null,null,null,""]
[224,8,7,null,null,null,null,null,null,null,""]
[225,8,7,null,null,null,null,null,null,null,""]
[226,8,7,null,null,null,null,null,null,null,""]
[227,8,7,null,null,null,null,null,null,null,""]
[228,8,7,null,null,null,null,null,null,null,""]
[229,8,7,null,null,null,null,null,null,null,""]
[230,8,7,null,null,null,null,null,null,null,""]
[231,8,7,null,null,null,null,null,null,null,""]
[232,8,7,null,null,null,null,null,null,null,""]
[233,8,7,null,null,null,null,null,null,null,""]
[234,8,7,null,null,null,null,null,null,null,""]
[235,8,7,null,null,null,null,null,null,null,""]
[236,8,7,null,null,null,null,null,null,null,""]
[237,8,7,null,null,null,null,null,null,null,""]
[238,8,7,null,null,null,null,null,null,null,""]
[239,8,7,null,null,null,null,null,null,null,""]
[240,8,7,null,null,null,null,null,null,null,""]
[241,8,7,null,null,null,null,null,null,null,""]
[242,8,7,null,null,null,null,null,null,null,""]
[243,8,7,null,null,null,null,null,null,null,""]
[244,8,7,null,null,null,null,null,null,null,""]
[245,8,7,null,null,null,null,null,null,null,""]
[246,8,7,null,null,null,null,null,null,null,""]
[247,8,7,null,null,null,null,null,null,null,""]
[248,8,7,null,null,null,null,null,null,null,""]
[249,8,7,null,null,null,null,null,null,null,""]
[250,8,7,null,null,null,null,null,null,null,""]
[251,8,7,null,null,null,null,null,null,null,""]
[252,8,7,null,null,null,null,null,null,null,""]
[253,8,7,null,null,null,null,null,null,null,""]
[254,8,7,null,null,null,null,null,null,null,""]
[255,8,7,null,null,null,null,null,null,null,""]
[256,{"$f":"COUNTBLANK(E267:L267)","v":8},7,{"$f":"IF(SUM(B229:B267)=312,0,1)","v":0},null,null,null,null,null,null,""]
[257,8,8,null,null,null,null,null,null,null,""]
[258,8,8,null,null,null,null,null,null,null,""]
[259,8,8,null,null,null,null,null,null,null,""]
[260,8,8,null,null,null,null,null,null,null,""]
[261,8,8,null,null,null,null,null,null,null,""]
[262,8,8,null,null,null,null,null,null,null,""]
[263,8,8,null,null,null,null,null,null,null,""]
[264,8,8,null,null,null,null,null,null,null,""]
[265,8,8,null,null,null,null,null,null,null,""]
[266,8,8,null,null,null,null,null,null,null,""]
[267,8,8,null,null,null,null,null,null,null,""]
[268,8,8,null,null,null,null,null,null,null,""]
[269,8,8,null,null,null,null,null,null,null,""]
[270,8,8,null,null,null,null,null,null,null,""]
[271,8,8,null,null,null,null,null,null,null,""]
[272,8,8,null,null,null,null,null,null,null,""]
[273,8,8,null,null,null,null,null,null,null,""]
[274,8,8,null,null,null,null,null,null,null,""]
[275,8,8,null,null,null,null,null,null,null,""]
[276,8,8,null,null,null,null,null,null,null,{"$f":"IF(H287*J287=0,\"\",ROUND(H287*J287,0))","v":""}]
[277,8,8,null,null,null,null,null,null,null,""]
[278,8,8,null,null,null,null,null,null,null,""]
[279,8,8,null,null,null,null,null,null,null,""]
[280,8,8,null,null,null,null,null,null,null,""]
[281,8,8,null,null,null,null,null,null,null,""]
[282,8,8,null,null,null,null,null,null,null,""]
[283,8,8,null,null,null,null,null,null,null,""]
[284,8,8,null,null,null,null,null,null,null,""]
[285,8,8,null,null,null,null,null,null,null,""]
[286,8,8,null,null,null,null,null,null,null,""]
[287,8,8,null,null,null,null,null,null,null,""]
[288,8,8,null,null,null,null,null,null,null,""]
[289,8,8,null,null,null,null,null,null,null,""]
[290,8,8,null,null,null,null,null,null,null,""]
[291,8,8,null,null,null,null,null,null,null,""]
[292,8,8,null,null,null,null,null,null,null,""]
[293,8,8,null,null,null,null,null,null,null,""]
[294,8,8,null,null,null,null,null,null,null,""]
[295,8,8,{"$f":"IF(SUM(B268:B306)=312,0,1)","v":0},null,null,null,null,null,null,""]
[296,8,9,null,null,null,null,null,null,null,""]
[297,8,9,null,null,null,null,null,null,null,""]
[298,8,9,null,null,null,null,null,null,null,""]
[299,8,9,null,null,null,null,null,null,null,""]
[300,8,9,null,null,null,null,null,null,null,""]
[301,8,9,null,null,null,null,null,null,null,""]
[302,8,9,null,null,null,null,null,null,null,""]
[303,8,9,null,null,null,null,null,null,null,""]
[304,8,9,null,null,null,null,null,null,null,""]
[305,8,9,null,null,null,null,null,null,null,""]
[306,8,9,null,null,null,null,null,null,null,""]
[307,8,9,null,null,null,null,null,null,null,""]
[308,8,9,null,null,null,null,null,null,null,""]
[309,8,9,null,null,null,null,null,null,null,""]
[310,8,9,null,null,null,null,null,null,null,""]
[311,8,9,null,null,null,null,null,null,null,""]
[312,8,9,null,null,null,null,null,null,null,""]
[313,8,9,null,null,null,null,null,null,null,""]
[314,8,9,null,null,null,null,null,null,null,""]
[315,8,9,null,null,null,null,null,null,null,""]
[316,8,9,null,null,null,null,null,null,null,""]
[317,8,9,null,null,null,null,null,null,null,""]
[318,8,9,null,null,null,null,null,null,null,""]
[319,8,9,null,null,null,null,null,null,null,""]
[320,{"$f":"COUNTBLANK(E331:L331)","v":8},9,null,null,null,null,null,null,null,""]
[321,8,9,null,null,null,null,null,null,null,""]
[322,8,9,null,null,null,null,null,null,null,""]
[323,8,9,null,null,null,null,null,null,null,""]
[324,8,9,null,null,null,null,null,null,null,""]
[325,8,9,null,null,null,null,null,null,null,""]
[326,8,9,null,null,null,null,null,null,null,""]
[327,8,9,null,null,null,null,null,null,null,""]
[328,8,9,null,null,null,null,null,null,null,""]
[329,8,9,null,null,null,null,null,null,null,""]
[330,8,9,null,null,null,null,null,null,null,""]
[331,8,9,null,null,null,null,null,null,null,""]
[332,8,9,null,null,null,null,null,null,null,""]
[333,8,9,null,null,null,null,null,null,null,""]
[334,8,9,{"$f":"IF(SUM(B307:B345)=312,0,1)","v":0},null,null,null,null,null,null,""]
[335,8,10,null,null,null,null,null,null,null,""]
[336,8,10,null,null,null,null,null,null,null,""]
[337,8,10,null,null,null,null,null,null,null,""]
[338,8,10,null,null,null,null,null,null,null,""]
[339,8,10,null,null,null,null,null,null,null,""]
[340,8,10,null,null,null,null,null,null,null,{"$f":"IF(H351*J351=0,\"\",ROUND(H351*J351,0))","v":""}]
[341,8,10,null,null,null,null,null,null,null,""]
[342,8,10,null,null,null,null,null,null,null,""]
[343,8,10,null,null,null,null,null,null,null,""]
[344,8,10,null,null,null,null,null,null,null,""]
[345,8,10,null,null,null,null,null,null,null,""]
[346,8,10,null,null,null,null,null,null,null,""]
[347,8,10,null,null,null,null,null,null,null,""]
[348,8,10,null,null,null,null,null,null,null,""]
[349,8,10,null,null,null,null,null,null,null,""]
[350,8,10,null,null,null,null,null,null,null,""]
[351,8,10,null,null,null,null,null,null,null,""]
[352,8,10,null,null,null,null,null,null,null,""]
[353,8,10,null,null,null,null,null,null,null,""]
[354,8,10,null,null,null,null,null,null,null,""]
[355,8,10,null,null,null,null,null,null,null,""]
[356,8,10,null,null,null,null,null,null,null,""]
[357,8,10,null,null,null,null,null,null,null,""]
[358,8,10,null,null,null,null,null,null,null,""]
[359,8,10,null,null,null,null,null,null,null,""]
[360,8,10,null,null,null,null,null,null,null,""]
[361,8,10,null,null,null,null,null,null,null,""]
[362,8,10,null,null,null,null,null,null,null,""]
[363,8,10,null,null,null,null,null,null,null,""]
[364,8,10,null,null,null,null,null,null,null,""]
[365,8,10,null,null,null,null,null,null,null,""]
[366,8,10,null,null,null,null,null,null,null,""]
[367,8,10,null,null,null,null,null,null,null,""]
[368,8,10,null,null,null,null,null,null,null,""]
[369,8,10,null,null,null,null,null,null,null,""]
[370,8,10,null,null,null,null,null,null,null,""]
[371,8,10,null,null,null,null,null,null,null,""]
[372,8,10,null,null,null,null,null,null,null,""]
[373,8,10,{"$f":"IF(SUM(B346:B384)=312,0,1)","v":0},null,null,null,null,null,null,""]
[374,8,11,null,null,null,null,null,null,null,""]
[375,8,11,null,null,null,null,null,null,null,""]
[376,8,11,null,null,null,null,null,null,null,""]
[377,8,11,null,null,null,null,null,null,null,""]
[378,8,11,null,null,null,null,null,null,null,""]
[379,8,11,null,null,null,null,null,null,null,""]
[380,8,11,null,null,null,null,null,null,null,""]
[381,8,11,null,null,null,null,null,null,null,""]
[382,8,11,null,null,null,null,null,null,null,""]
[383,8,11,null,null,null,null,null,null,null,""]
[384,{"$f":"COUNTBLANK(E395:L395)","v":8},11,null,null,null,null,null,null,null,""]
[385,8,11,null,null,null,null,null,null,null,""]
[386,8,11,null,null,null,null,null,null,null,""]
[387,8,11,null,null,null,null,null,null,null,""]
[388,8,11,null,null,null,null,null,null,null,""]
[389,8,11,null,null,null,null,null,null,null,""]
[390,8,11,null,null,null,null,null,null,null,""]
[391,8,11,null,null,null,null,null,null,null,""]
[392,8,11,null,null,null,null,null,null,null,""]
[393,8,11,null,null,null,null,null,null,null,""]
[394,8,11,null,null,null,null,null,null,null,""]
[395,8,11,null,null,null,null,null,null,null,""]
[396,8,11,null,null,null,null,null,null,null,""]
[397,8,11,null,null,null,null,null,null,null,""]
[398,8,11,null,null,null,null,null,null,null,""]
[399,8,11,null,null,null,null,null,null,null,""]
[400,8,11,null,null,null,null,null,null,null,""]
[401,8,11,null,null,null,null,null,null,null,""]
[402,8,11,null,null,null,null,null,null,null,""]
[403,8,11,null,null,null,null,null,null,null,""]
[404,8,11,null,null,null,null,null,null,null,{"$f":"IF(H415*J415=0,\"\",ROUND(H415*J415,0))","v":""}]
[405,8,11,null,null,null,null,null,null,null,""]
[406,8,11,null,null,null,null,null,null,null,""]
[407,8,11,null,null,null,null,null,null,null,""]
[408,8,11,null,null,null,null,null,null,null,""]
[409,8,11,null,null,null,null,null,null,null,""]
[410,8,11,null,null,null,null,null,null,null,""]
[411,8,11,null,null,null,null,null,null,null,""]
[412,8,11,{"$f":"IF(SUM(B385:B423)=312,0,1)","v":0},null,null,null,null,null,null,""]
[413,8,12,null,null,null,null,null,null,null,""]
[414,8,12,null,null,null,null,null,null,null,""]
[415,8,12,null,null,null,null,null,null,null,""]
[416,8,12,null,null,null,null,null,null,null,""]
[417,8,12,null,null,null,null,null,null,null,""]
[418,8,12,null,null,null,null,null,null,null,""]
[419,8,12,null,null,null,null,null,null,null,""]
[420,8,12,null,null,null,null,null,null,null,""]
[421,8,12,null,null,null,null,null,null,null,""]
[422,8,12,null,null,null,null,null,null,null,""]
[423,8,12,null,null,null,null,null,null,null,""]
[424,8,12,null,null,null,null,null,null,null,""]
[425,8,12,null,null,null,null,null,null,null,""]
[426,8,12,null,null,null,null,null,null,null,""]
[427,8,12,null,null,null,null,null,null,null,""]
[428,8,12,null,null,null,null,null,null,null,""]
[429,8,12,null,null,null,null,null,null,null,""]
[430,8,12,null,null,null,null,null,null,null,""]
[431,8,12,null,null,null,null,null,null,null,""]
[432,8,12,null,null,null,null,null,null,null,""]
[433,8,12,null,null,null,null,null,null,null,""]
[434,8,12,null,null,null,null,null,null,null,""]
[435,8,12,null,null,null,null,null,null,null,""]
[436,8,12,null,null,null,null,null,null,null,""]
[437,8,12,null,null,null,null,null,null,null,""]
[438,8,12,null,null,null,null,null,null,null,""]
[439,8,12,null,null,null,null,null,null,null,""]
[440,8,12,null,null,null,null,null,null,null,""]
[441,8,12,null,null,null,null,null,null,null,""]
[442,8,12,null,null,null,null,null,null,null,""]
[443,8,12,null,null,null,null,null,null,null,""]
[444,8,12,null,null,null,null,null,null,null,""]
[445,8,12,null,null,null,null,null,null,null,""]
[446,8,12,null,null,null,null,null,null,null,""]
[447,8,12,null,null,null,null,null,null,null,""]
[448,{"$f":"COUNTBLANK(E459:L459)","v":8},12,null,null,null,null,null,null,null,""]
[449,8,12,null,null,null,null,null,null,null,""]
[450,8,12,null,null,null,null,null,null,null,""]
[451,8,12,{"$f":"IF(SUM(B424:B462)=312,0,1)","v":0},null,null,null,null,null,null,""]
[452,8,13,null,null,null,null,null,null,null,""]
[453,8,13,null,null,null,null,null,null,null,""]
[454,8,13,null,null,null,null,null,null,null,""]
[455,8,13,null,null,null,null,null,null,null,""]
[456,8,13,null,null,null,null,null,null,null,""]
[457,8,13,null,null,null,null,null,null,null,""]
[458,8,13,null,null,null,null,null,null,null,""]
[459,8,13,null,null,null,null,null,null,null,""]
[460,8,13,null,null,null,null,null,null,null,""]
[461,8,13,null,null,null,null,null,null,null,""]
[462,8,13,null,null,null,null,null,null,null,""]
[463,8,13,null,null,null,null,null,null,null,""]
[464,8,13,null,null,null,null,null,null,null,""]
[465,8,13,null,null,null,null,null,null,null,""]
[466,8,13,null,null,null,null,null,null,null,""]
[467,8,13,null,null,null,null,null,null,null,""]
[468,8,13,null,null,null,null,null,null,null,{"$f":"IF(H479*J479=0,\"\",ROUND(H479*J479,0))","v":""}]
[469,8,13,null,null,null,null,null,null,null,""]
[470,8,13,null,null,null,null,null,null,null,""]
[471,8,13,null,null,null,null,null,null,null,""]
[472,8,13,null,null,null,null,null,null,null,""]
[473,8,13,null,null,null,null,null,null,null,""]
[474,8,13,null,null,null,null,null,null,null,""]
[475,8,13,null,null,null,null,null,null,null,""]
[476,8,13,null,null,null,null,null,null,null,""]
[477,8,13,null,null,null,null,null,null,null,""]
[478,8,13,null,null,null,null,null,null,null,""]
[479,8,13,null,null,null,null,null,null,null,""]
[480,8,13,null,null,null,null,null,null,null,""]
[481,8,13,null,null,null,null,null,null,null,""]
[482,8,13,null,null,null,null,null,null,null,""]
[483,8,13,null,null,null,null,null,null,null,""]
[484,8,13,null,null,null,null,null,null,null,""]
[485,8,13,null,null,null,null,null,null,null,""]
[486,8,13,null,null,null,null,null,null,null,""]
[487,8,13,null,null,null,null,null,null,null,""]
[488,8,13,null,null,null,null,null,null,null,""]
[489,8,13,null,null,null,null,null,null,null,""]
[490,8,13,{"$f":"IF(SUM(B463:B501)=312,0,1)","v":0},null,null,null,null,null,null,""]
[491,8,14,null,null,null,null,null,null,null,""]
[492,8,14,null,null,null,null,null,null,null,""]
[493,8,14,null,null,null,null,null,null,null,""]
[494,8,14,null,null,null,null,null,null,null,""]
[495,8,14,null,null,null,null,null,null,null,""]
[496,8,14,null,null,null,null,null,null,null,""]
[497,8,14,null,null,null,null,null,null,null,""]
[498,8,14,null,null,null,null,null,null,null,""]
[499,8,14,null,null,null,null,null,null,null,""]
[500,8,14,null,null,null,null,null,null,null,""]
[501,8,14,null,null,null,null,null,null,null,""]
[502,8,14,null,null,null,null,null,null,null,""]
[503,8,14,null,null,null,null,null,null,null,""]
[504,8,14,null,null,null,null,null,null,null,""]
[505,8,14,null,null,null,null,null,null,null,""]
[506,8,14,null,null,null,null,null,null,null,""]
[507,8,14,null,null,null,null,null,null,null,""]
[508,8,14,null,null,null,null,null,null,null,""]
[509,8,14,null,null,null,null,null,null,null,""]
[510,8,14,null,null,null,null,null,null,null,""]
[511,8,14,null,null,null,null,null,null,null,""]
[512,{"$f":"COUNTBLANK(E523:L523)","v":8},14,null,null,null,null,null,null,null,""]
[513,8,14,null,null,null,null,null,null,null,""]
[514,8,14,null,null,null,null,null,null,null,""]
[515,8,14,null,null,null,null,null,null,null,""]
[516,8,14,null,null,null,null,null,null,null,""]
[517,8,14,null,null,null,null,null,null,null,""]
[518,8,14,null,null,null,null,null,null,null,""]
[519,8,14,null,null,null,null,null,null,null,""]
[520,8,14,null,null,null,null,null,null,null,""]
[521,8,14,null,null,null,null,null,null,null,""]
[522,8,14,null,null,null,null,null,null,null,""]
[523,8,14,null,null,null,null,null,null,null,""]
[524,8,14,null,null,null,null,null,null,null,""]
[525,8,14,null,null,null,null,null,null,null,""]
[526,8,14,null,null,null,null,null,null,null,""]
[527,8,14,null,null,null,null,null,null,null,""]
[528,8,14,null,null,null,null,null,null,null,""]
[529,8,14,{"$f":"IF(SUM(B502:B540)=312,0,1)","v":0},null,null,null,null,null,null,""]
[530,8,15,null,null,null,null,null,null,null,""]
[531,8,15,null,null,null,null,null,null,null,""]
[532,8,15,null,null,null,null,null,null,null,{"$f":"IF(H543*J543=0,\"\",ROUND(H543*J543,0))","v":""}]
[533,8,15,null,null,null,null,null,null,null,""]
[534,8,15,null,null,null,null,null,null,null,""]
[535,8,15,null,null,null,null,null,null,null,""]
[536,8,15,null,null,null,null,null,null,null,""]
[537,8,15,null,null,null,null,null,null,null,""]
[538,8,15,null,null,null,null,null,null,null,""]
[539,8,15,null,null,null,null,null,null,null,""]
[540,8,15,null,null,null,null,null,null,null,""]
[541,8,15,null,null,null,null,null,null,null,""]
[542,8,15,null,null,null,null,null,null,null,""]
[543,8,15,null,null,null,null,null,null,null,""]
[544,8,15,null,null,null,null,null,null,null,""]
[545,8,15,null,null,null,null,null,null,null,""]
[546,8,15,null,null,null,null,null,null,null,""]
[547,8,15,null,null,null,null,null,null,null,""]
[548,8,15,null,null,null,null,null,null,null,""]
[549,8,15,null,null,null,null,null,null,null,""]
[550,8,15,null,null,null,null,null,null,null,""]
[551,8,15,null,null,null,null,null,null,null,""]
[552,8,15,null,null,null,null,null,null,null,""]
[553,8,15,null,null,null,null,null,null,null,""]
[554,8,15,null,null,null,null,null,null,null,""]
[555,8,15,null,null,null,null,null,null,null,""]
[556,8,15,null,null,null,null,null,null,null,""]
[557,8,15,null,null,null,null,null,null,null,""]
[558,8,15,null,null,null,null,null,null,null,""]
[559,8,15,null,null,null,null,null,null,null,""]
[560,8,15,null,null,null,null,null,null,null,""]
[561,8,15,null,null,null,null,null,null,null,""]
[562,8,15,null,null,null,null,null,null,null,""]
[563,8,15,null,null,null,null,null,null,null,""]
[564,8,15,null,null,null,null,null,null,null,""]
[565,8,15,null,null,null,null,null,null,null,""]
[566,8,15,null,null,null,null,null,null,null,""]
[567,8,15,null,null,null,null,null,null,null,""]
[568,8,15,{"$f":"IF(SUM(B541:B579)=312,0,1)","v":0},null,null,null,null,null,null,""]
[569,8,16,null,null,null,null,null,null,null,""]
[570,8,16,null,null,null,null,null,null,null,""]
[571,8,16,null,null,null,null,null,null,null,""]
[572,8,16,null,null,null,null,null,null,null,""]
[573,8,16,null,null,null,null,null,null,null,""]
[574,8,16,null,null,null,null,null,null,null,""]
[575,8,16,null,null,null,null,null,null,null,""]
[576,{"$f":"COUNTBLANK(E587:L587)","v":8},16,null,null,null,null,null,null,null,""]
[577,8,16,null,null,null,null,null,null,null,""]
[578,8,16,null,null,null,null,null,null,null,""]
[579,8,16,null,null,null,null,null,null,null,""]
[580,8,16,null,null,null,null,null,null,null,""]
[581,8,16,null,null,null,null,null,null,null,""]
[582,8,16,null,null,null,null,null,null,null,""]
[583,8,16,null,null,null,null,null,null,null,""]
[584,8,16,null,null,null,null,null,null,null,""]
[585,8,16,null,null,null,null,null,null,null,""]
[586,8,16,null,null,null,null,null,null,null,""]
[587,8,16,null,null,null,null,null,null,null,""]
[588,8,16,null,null,null,null,null,null,null,""]
[589,8,16,null,null,null,null,null,null,null,""]
[590,8,16,null,null,null,null,null,null,null,""]
[591,8,16,null,null,null,null,null,null,null,""]
[592,8,16,null,null,null,null,null,null,null,""]
[593,8,16,null,null,null,null,null,null,null,""]
[594,8,16,null,null,null,null,null,null,null,""]
[595,8,16,null,null,null,null,null,null,null,""]
[596,8,16,null,null,null,null,null,null,null,{"$f":"IF(H607*J607=0,\"\",ROUND(H607*J607,0))","v":""}]
[597,8,16,null,null,null,null,null,null,null,""]
[598,8,16,null,null,null,null,null,null,null,""]
[599,8,16,null,null,null,null,null,null,null,""]
[600,8,16,null,null,null,null,null,null,null,""]
[601,8,16,null,null,null,null,null,null,null,""]
[602,8,16,null,null,null,null,null,null,null,""]
[603,8,16,null,null,null,null,null,null,null,""]
[604,8,16,null,null,null,null,null,null,null,""]
[605,8,16,null,null,null,null,null,null,null,""]
[606,8,16,null,null,null,null,null,null,null,""]
[607,8,16,{"$f":"IF(SUM(B580:B618)=312,0,1)","v":0},null,null,null,null,null,null,""]
[608,8,17,null,null,null,null,null,null,null,""]
[609,8,17,null,null,null,null,null,null,null,""]
[610,8,17,null,null,null,null,null,null,null,""]
[611,8,17,null,null,null,null,null,null,null,""]
[612,8,17,null,null,null,null,null,null,null,""]
[613,8,17,null,null,null,null,null,null,null,""]
[614,8,17,null,null,null,null,null,null,null,""]
[615,8,17,null,null,null,null,null,null,null,""]
[616,8,17,null,null,null,null,null,null,null,""]
[617,8,17,null,null,null,null,null,null,null,""]
[618,8,17,null,null,null,null,null,null,null,""]
[619,8,17,null,null,null,null,null,null,null,""]
[620,8,17,null,null,null,null,null,null,null,""]
[621,8,17,null,null,null,null,null,null,null,""]
[622,8,17,null,null,null,null,null,null,null,""]
[623,8,17,null,null,null,null,null,null,null,""]
[624,8,17,null,null,null,null,null,null,null,""]
[625,8,17,null,null,null,null,null,null,null,""]
[626,8,17,null,null,null,null,null,null,null,""]
[627,8,17,null,null,null,null,null,null,null,""]
[628,8,17,null,null,null,null,null,null,null,""]
[629,8,17,null,null,null,null,null,null,null,""]
[630,8,17,null,null,null,null,null,null,null,""]
[631,8,17,null,null,null,null,null,null,null,""]
[632,8,17,null,null,null,null,null,null,null,""]
[633,8,17,null,null,null,null,null,null,null,""]
[634,8,17,null,null,null,null,null,null,null,""]
[635,8,17,null,null,null,null,null,null,null,""]
[636,8,17,null,null,null,null,null,null,null,""]
[637,8,17,null,null,null,null,null,null,null,""]
[638,8,17,null,null,null,null,null,null,null,""]
[639,8,17,null,null,null,null,null,null,null,""]
[640,{"$f":"COUNTBLANK(E651:L651)","v":8},17,null,null,null,null,null,null,null,""]
[641,8,17,null,null,null,null,null,null,null,""]
[642,8,17,null,null,null,null,null,null,null,""]
[643,8,17,null,null,null,null,null,null,null,""]
[644,8,17,null,null,null,null,null,null,null,""]
[645,8,17,null,null,null,null,null,null,null,""]
[646,8,17,{"$f":"IF(SUM(B619:B657)=312,0,1)","v":0},null,null,null,null,null,null,""]
[647,8,18,null,null,null,null,null,null,null,""]
[648,8,18,null,null,null,null,null,null,null,""]
[649,8,18,null,null,null,null,null,null,null,""]
[650,8,18,null,null,null,null,null,null,null,""]
[651,8,18,null,null,null,null,null,null,null,""]
[652,8,18,null,null,null,null,null,null,null,""]
[653,8,18,null,null,null,null,null,null,null,""]
[654,8,18,null,null,null,null,null,null,null,""]
[655,8,18,null,null,null,null,null,null,null,""]
[656,8,18,null,null,null,null,null,null,null,""]
[657,8,18,null,null,null,null,null,null,null,""]
[658,8,18,null,null,null,null,null,null,null,""]
[659,8,18,null,null,null,null,null,null,null,""]
[660,8,18,null,null,null,null,null,null,null,{"$f":"IF(H671*J671=0,\"\",ROUND(H671*J671,0))","v":""}]
[661,8,18,null,null,null,null,null,null,null,""]
[662,8,18,null,null,null,null,null,null,null,""]
[663,8,18,null,null,null,null,null,null,null,""]
[664,8,18,null,null,null,null,null,null,null,""]
[665,8,18,null,null,null,null,null,null,null,""]
[666,8,18,null,null,null,null,null,null,null,""]
[667,8,18,null,null,null,null,null,null,null,""]
[668,8,18,null,null,null,null,null,null,null,""]
[669,8,18,null,null,null,null,null,null,null,""]
[670,8,18,null,null,null,null,null,null,null,""]
[671,8,18,null,null,null,null,null,null,null,""]
[672,8,18,null,null,null,null,null,null,null,""]
[673,8,18,null,null,null,null,null,null,null,""]
[674,8,18,null,null,null,null,null,null,null,""]
[675,8,18,null,null,null,null,null,null,null,""]
[676,8,18,null,null,null,null,null,null,null,""]
[677,8,18,null,null,null,null,null,null,null,""]
[678,8,18,null,null,null,null,null,null,null,""]
[679,8,18,null,null,null,null,null,null,null,""]
[680,8,18,null,null,null,null,null,null,null,""]
[681,8,18,null,null,null,null,null,null,null,""]
[682,8,18,null,null,null,null,null,null,null,""]
[683,8,18,null,null,null,null,null,null,null,""]
[684,8,18,null,null,null,null,null,null,null,""]
[685,8,18,{"$f":"IF(SUM(B658:B696)=312,0,1)","v":0},null,null,null,null,null,null,""]
[686,8,19,null,null,null,null,null,null,null,""]
[687,8,19,null,null,null,null,null,null,null,""]
[688,8,19,null,null,null,null,null,null,null,""]
[689,8,19,null,null,null,null,null,null,null,""]
[690,8,19,null,null,null,null,null,null,null,""]
[691,8,19,null,null,null,null,null,null,null,""]
[692,8,19,null,null,null,null,null,null,null,""]
[693,8,19,null,null,null,null,null,null,null,""]
[694,8,19,null,null,null,null,null,null,null,""]
[695,8,19,null,null,null,null,null,null,null,""]
[696,8,19,null,null,null,null,null,null,null,""]
[697,8,19,null,null,null,null,null,null,null,""]
[698,8,19,null,null,null,null,null,null,null,""]
[699,8,19,null,null,null,null,null,null,null,""]
[700,8,19,null,null,null,null,null,null,null,""]
[701,8,19,null,null,null,null,null,null,null,""]
[702,8,19,null,null,null,null,null,null,null,""]
[703,8,19,null,null,null,null,null,null,null,""]
[704,{"$f":"COUNTBLANK(E715:L715)","v":8},19,null,null,null,null,null,null,null,""]
[705,8,19,null,null,null,null,null,null,null,""]
[706,8,19,null,null,null,null,null,null,null,""]
[707,8,19,null,null,null,null,null,null,null,""]
[708,8,19,null,null,null,null,null,null,null,""]
[709,8,19,null,null,null,null,null,null,null,""]
[710,8,19,null,null,null,null,null,null,null,""]
[711,8,19,null,null,null,null,null,null,null,""]
[712,8,19,null,null,null,null,null,null,null,""]
[713,8,19,null,null,null,null,null,null,null,""]
[714,8,19,null,null,null,null,null,null,null,""]
[715,8,19,null,null,null,null,null,null,null,""]
[716,8,19,null,null,null,null,null,null,null,""]
[717,8,19,null,null,null,null,null,null,null,""]
[718,8,19,null,null,null,null,null,null,null,""]
[719,8,19,null,null,null,null,null,null,null,""]
[720,8,19,null,null,null,null,null,null,null,""]
[721,8,19,null,null,null,null,null,null,null,""]
[722,8,19,null,null,null,null,null,null,null,""]
[723,8,19,null,null,null,null,null,null,null,""]
[724,8,19,{"$f":"IF(SUM(B697:B735)=312,0,1)","v":0},null,null,null,null,null,null,{"$f":"IF(H735*J735=0,\"\",ROUND(H735*J735,0))","v":""}]
[725,8,20,null,null,null,null,null,null,null,""]
[726,8,20,null,null,null,null,null,null,null,""]
[727,8,20,null,null,null,null,null,null,null,""]
[728,8,20,null,null,null,null,null,null,null,""]
[729,8,20,null,null,null,null,null,null,null,""]
[730,8,20,null,null,null,null,null,null,null,""]
[731,8,20,null,null,null,null,null,null,null,""]
[732,8,20,null,null,null,null,null,null,null,""]
[733,8,20,null,null,null,null,null,null,null,""]
[734,8,20,null,null,null,null,null,null,null,""]
[735,8,20,null,null,null,null,null,null,null,""]
[736,8,20,null,null,null,null,null,null,null,""]
[737,8,20,null,null,null,null,null,null,null,""]
[738,8,20,null,null,null,null,null,null,null,""]
[739,8,20,null,null,null,null,null,null,null,""]
[740,8,20,null,null,null,null,null,null,null,""]
[741,8,20,null,null,null,null,null,null,null,""]
[742,8,20,null,null,null,null,null,null,null,""]
[743,8,20,null,null,null,null,null,null,null,""]
[744,8,20,null,null,null,null,null,null,null,""]
[745,8,20,null,null,null,null,null,null,null,""]
[746,8,20,null,null,null,null,null,null,null,""]
[747,8,20,null,null,null,null,null,null,null,""]
[748,8,20,null,null,null,null,null,null,null,""]
[749,8,20,null,null,null,null,null,null,null,""]
[750,8,20,null,null,null,null,null,null,null,""]
[751,8,20,null,null,null,null,null,null,null,""]
[752,8,20,null,null,null,null,null,null,null,""]
[753,8,20,null,null,null,null,null,null,null,""]
[754,8,20,null,null,null,null,null,null,null,""]
[755,8,20,null,null,null,null,null,null,null,""]
[756,8,20,null,null,null,null,null,null,null,""]
[757,8,20,null,null,null,null,null,null,null,""]
[758,8,20,null,null,null,null,null,null,null,""]
[759,8,20,null,null,null,null,null,null,null,""]
[760,8,20,null,null,null,null,null,null,null,""]
[761,8,20,null,null,null,null,null,null,null,""]
[762,8,20,null,null,null,null,null,null,null,""]
[763,8,20,{"$f":"IF(SUM(B736:B774)=312,0,1)","v":0},null,null,null,null,null,null,""]
[764,8,21,null,null,null,null,null,null,null,""]
[765,8,21,null,null,null,null,null,null,null,""]
[766,8,21,null,null,null,null,null,null,null,""]
[767,8,21,null,null,null,null,null,null,null,""]
[768,{"$f":"COUNTBLANK(E779:L779)","v":8},21,null,null,null,null,null,null,null,""]
[769,8,21,null,null,null,null,null,null,null,""]
[770,8,21,null,null,null,null,null,null,null,""]
[771,8,21,null,null,null,null,null,null,null,""]
[772,8,21,null,null,null,null,null,null,null,""]
[773,8,21,null,null,null,null,null,null,null,""]
[774,8,21,null,null,null,null,null,null,null,""]
[775,8,21,null,null,null,null,null,null,null,""]
[776,8,21,null,null,null,null,null,null,null,""]
[777,8,21,null,null,null,null,null,null,null,""]
[778,8,21,null,null,null,null,null,null,null,""]
[779,8,21,null,null,null,null,null,null,null,""]
[780,8,21,null,null,null,null,null,null,null,""]
[781,8,21,null,null,null,null,null,null,null,""]
[782,8,21,null,null,null,null,null,null,null,""]
[783,8,21,null,null,null,null,null,null,null,""]
[784,8,21,null,null,null,null,null,null,null,""]
[785,8,21,null,null,null,null,null,null,null,""]
[786,8,21,null,null,null,null,null,null,null,""]
[787,8,21,null,null,null,null,null,null,null,""]
[788,8,21,null,null,null,null,null,null,null,{"$f":"IF(H799*J799=0,\"\",ROUND(H799*J799,0))","v":""}]
[789,8,21,null,null,null,null,null,null,null,""]
[790,8,21,null,null,null,null,null,null,null,""]
[791,8,21,null,null,null,null,null,null,null,""]
[792,8,21,null,null,null,null,null,null,null,""]
[793,8,21,null,null,null,null,null,null,null,""]
[794,8,21,null,null,null,null,null,null,null,""]
[795,8,21,null,null,null,null,null,null,null,""]
[796,8,21,null,null,null,null,null,null,null,""]
[797,8,21,null,null,null,null,null,null,null,""]
[798,8,21,null,null,null,null,null,null,null,""]
[799,8,21,null,null,null,null,null,null,null,""]
[800,8,21,null,null,null,null,null,null,null,""]
[801,8,21,null,null,null,null,null,null,null,""]
[802,8,21,{"$f":"IF(SUM(B775:B813)=312,0,1)","v":0},null,null,null,null,null,null,""]
[803,8,22,null,null,null,null,null,null,null,""]
[804,8,22,null,null,null,null,null,null,null,""]
[805,8,22,null,null,null,null,null,null,null,""]
[806,8,22,null,null,null,null,null,null,null,""]
[807,8,22,null,null,null,null,null,null,null,""]
[808,8,22,null,null,null,null,null,null,null,""]
[809,8,22,null,null,null,null,null,null,null,""]
[810,8,22,null,null,null,null,null,null,null,""]
[811,8,22,null,null,null,null,null,null,null,""]
[812,8,22,null,null,null,null,null,null,null,""]
[813,8,22,null,null,null,null,null,null,null,""]
[814,8,22,null,null,null,null,null,null,null,""]
[815,8,22,null,null,null,null,null,null,null,""]
[816,8,22,null,null,null,null,null,null,null,""]
[817,8,22,null,null,null,null,null,null,null,""]
[818,8,22,null,null,null,null,null,null,null,""]
[819,8,22,null,null,null,null,null,null,null,""]
[820,8,22,null,null,null,null,null,null,null,""]
[821,8,22,null,null,null,null,null,null,null,""]
[822,8,22,null,null,null,null,null,null,null,""]
[823,8,22,null,null,null,null,null,null,null,""]
[824,8,22,null,null,null,null,null,null,null,""]
[825,8,22,null,null,null,null,null,null,null,""]
[826,8,22,null,null,null,null,null,null,null,""]
[827,8,22,null,null,null,null,null,null,null,""]
[828,8,22,null,null,null,null,null,null,null,""]
[829,8,22,null,null,null,null,null,null,null,""]
[830,8,22,null,null,null,null,null,null,null,""]
[831,8,22,null,null,null,null,null,null,null,""]
[832,{"$f":"COUNTBLANK(E843:L843)","v":8},22,null,null,null,null,null,null,null,""]
[833,8,22,null,null,null,null,null,null,null,""]
[834,8,22,null,null,null,null,null,null,null,""]
[835,8,22,null,null,null,null,null,null,null,""]
[836,8,22,null,null,null,null,null,null,null,""]
[837,8,22,null,null,null,null,null,null,null,""]
[838,8,22,null,null,null,null,null,null,null,""]
[839,8,22,null,null,null,null,null,null,null,""]
[840,8,22,null,null,null,null,null,null,null,""]
[841,8,22,{"$f":"IF(SUM(B814:B852)=312,0,1)","v":0},null,null,null,null,null,null,""]
[842,8,23,null,null,null,null,null,null,null,""]
[843,8,23,null,null,null,null,null,null,null,""]
[844,8,23,null,null,null,null,null,null,null,""]
[845,8,23,null,null,null,null,null,null,null,""]
[846,8,23,null,null,null,null,null,null,null,""]
[847,8,23,null,null,null,null,null,null,null,""]
[848,8,23,null,null,null,null,null,null,null,""]
[849,8,23,null,null,null,null,null,null,null,""]
[850,8,23,null,null,null,null,null,null,null,""]
[851,8,23,null,null,null,null,null,null,null,""]
[852,8,23,null,null,null,null,null,null,null,{"$f":"IF(H863*J863=0,\"\",ROUND(H863*J863,0))","v":""}]
[853,8,23,null,null,null,null,null,null,null,""]
[854,8,23,null,null,null,null,null,null,null,""]
[855,8,23,null,null,null,null,null,null,null,""]
[856,8,23,null,null,null,null,null,null,null,""]
[857,8,23,null,null,null,null,null,null,null,""]
[858,8,23,null,null,null,null,null,null,null,""]
[859,8,23,null,null,null,null,null,null,null,""]
[860,8,23,null,null,null,null,null,null,null,""]
[861,8,23,null,null,null,null,null,null,null,""]
[862,8,23,null,null,null,null,null,null,null,""]
[863,8,23,null,null,null,null,null,null,null,""]
[864,8,23,null,null,null,null,null,null,null,""]
[865,8,23,null,null,null,null,null,null,null,""]
[866,8,23,null,null,null,null,null,null,null,""]
[867,8,23,null,null,null,null,null,null,null,""]
[868,8,23,null,null,null,null,null,null,null,""]
[869,8,23,null,null,null,null,null,null,null,""]
[870,8,23,null,null,null,null,null,null,null,""]
[871,8,23,null,null,null,null,null,null,null,""]
[872,8,23,null,null,null,null,null,null,null,""]
[873,8,23,null,null,null,null,null,null,null,""]
[874,8,23,null,null,null,null,null,null,null,""]
[875,8,23,null,null,null,null,null,null,null,""]
[876,8,23,null,null,null,null,null,null,null,""]
[877,8,23,null,null,null,null,null,null,null,""]
[878,8,23,null,null,null,null,null,null,null,""]
[879,8,23,null,null,null,null,null,null,null,""]
[880,8,23,{"$f":"IF(SUM(B853:B891)=312,0,1)","v":0},null,null,null,null,null,null,""]
[881,8,24,null,null,null,null,null,null,null,""]
[882,8,24,null,null,null,null,null,null,null,""]
[883,8,24,null,null,null,null,null,null,null,""]
[884,8,24,null,null,null,null,null,null,null,""]
[885,8,24,null,null,null,null,null,null,null,""]
[886,8,24,null,null,null,null,null,null,null,""]
[887,8,24,null,null,null,null,null,null,null,""]
[888,8,24,null,null,null,null,null,null,null,""]
[889,8,24,null,null,null,null,null,null,null,""]
[890,8,24,null,null,null,null,null,null,null,""]
[891,8,24,null,null,null,null,null,null,null,""]
[892,8,24,null,null,null,null,null,null,null,""]
[893,8,24,null,null,null,null,null,null,null,""]
[894,8,24,null,null,null,null,null,null,null,""]
[895,8,24,null,null,null,null,null,null,null,""]
[896,{"$f":"COUNTBLANK(E907:L907)","v":8},24,null,null,null,null,null,null,null,""]
[897,8,24,null,null,null,null,null,null,null,""]
[898,8,24,null,null,null,null,null,null,null,""]
[899,8,24,null,null,null,null,null,null,null,""]
[900,8,24,null,null,null,null,null,null,null,""]
[901,8,24,null,null,null,null,null,null,null,""]
[902,8,24,null,null,null,null,null,null,null,""]
[903,8,24,null,null,null,null,null,null,null,""]
[904,8,24,null,null,null,null,null,null,null,""]
[905,8,24,null,null,null,null,null,null,null,""]
[906,8,24,null,null,null,null,null,null,null,""]
[907,8,24,null,null,null,null,null,null,null,""]
[908,8,24,null,null,null,null,null,null,null,""]
[909,8,24,null,null,null,null,null,null,null,""]
[910,8,24,null,null,null,null,null,null,null,""]
[911,8,24,null,null,null,null,null,null,null,""]
[912,8,24,null,null,null,null,null,null,null,""]
[913,8,24,null,null,null,null,null,null,null,""]
[914,8,24,null,null,null,null,null,null,null,""]
[915,8,24,null,null,null,null,null,null,null,""]
[916,8,24,null,null,null,null,null,null,null,{"$f":"IF(H927*J927=0,\"\",ROUND(H927*J927,0))","v":""}]
[917,8,24,null,null,null,null,null,null,null,""]
[918,8,24,null,null,null,null,null,null,null,""]
[919,8,24,{"$f":"IF(SUM(B892:B930)=312,0,1)","v":0},null,null,null,null,null,null,""]
[920,8,25,null,null,null,null,null,null,null,""]
[921,8,25,null,null,null,null,null,null,null,""]
[922,8,25,null,null,null,null,null,null,null,""]
[923,8,25,null,null,null,null,null,null,null,""]
[924,8,25,null,null,null,null,null,null,null,""]
[925,8,25,null,null,null,null,null,null,null,""]
[926,8,25,null,null,null,null,null,null,null,""]
[927,8,25,null,null,null,null,null,null,null,""]
[928,8,25,null,null,null,null,null,null,null,""]
[929,8,25,null,null,null,null,null,null,null,""]
[930,8,25,null,null,null,null,null,null,null,""]
[931,8,25,null,null,null,null,null,null,null,""]
[932,8,25,null,null,null,null,null,null,null,""]
[933,8,25,null,null,null,null,null,null,null,""]
[934,8,25,null,null,null,null,null,null,null,""]
[935,8,25,null,null,null,null,null,null,null,""]
[936,8,25,null,null,null,null,null,null,null,""]
[937,8,25,null,null,null,null,null,null,null,""]
[938,8,25,null,null,null,null,null,null,null,""]
[939,8,25,null,null,null,null,null,null,null,""]
[940,8,25,null,null,null,null,null,null,null,""]
[941,8,25,null,null,null,null,null,null,null,""]
[942,8,25,null,null,null,null,null,null,null,""]
[943,8,25,null,null,null,null,null,null,null,""]
[944,8,25,null,null,null,null,null,null,null,""]
[945,8,25,null,null,null,null,null,null,null,""]
[946,8,25,null,null,null,null,null,null,null,""]
[947,8,25,null,null,null,null,null,null,null,""]
[948,8,25,null,null,null,null,null,null,null,""]
[949,8,25,null,null,null,null,null,null,null,""]
[950,8,25,null,null,null,null,null,null,null,""]
[951,8,25,null,null,null,null,null,null,null,""]
[952,8,25,null,null,null,null,null,null,null,""]
[953,8,25,null,null,null,null,null,null,null,""]
[954,8,25,null,null,null,null,null,null,null,""]
[955,8,25,null,null,null,null,null,null,null,""]
[956,8,25,null,null,null,null,null,null,null,""]
[957,8,25,null,null,null,null,null,null,null,""]
[958,8,25,{"$f":"IF(SUM(B931:B969)=312,0,1)","v":0},null,null,null,null,null,null,""]
[959,8,26,null,null,null,null,null,null,null,""]
[960,{"$f":"COUNTBLANK(E971:L971)","v":8},26,null,null,null,null,null,null,null,""]
[961,8,26,null,null,null,null,null,null,null,""]
[962,8,26,null,null,null,null,null,null,null,""]
[963,8,26,null,null,null,null,null,null,null,""]
[964,8,26,null,null,null,null,null,null,null,""]
[965,8,26,null,null,null,null,null,null,null,""]
[966,8,26,null,null,null,null,null,null,null,""]
[967,8,26,null,null,null,null,null,null,null,""]
[968,8,26,null,null,null,null,null,null,null,""]
[969,8,26,null,null,null,null,null,null,null,""]
[970,8,26,null,null,null,null,null,null,null,""]
[971,8,26,null,null,null,null,null,null,null,""]
[972,8,26,null,null,null,null,null,null,null,""]
[973,8,26,null,null,null,null,null,null,null,""]
[974,8,26,null,null,null,null,null,null,null,""]
[975,8,26,null,null,null,null,null,null,null,""]
[976,8,26,null,null,null,null,null,null,null,""]
[977,8,26,null,null,null,null,null,null,null,""]
[978,8,26,null,null,null,null,null,null,null,""]
[979,8,26,null,null,null,null,null,null,null,""]
[980,8,26,null,null,null,null,null,null,null,{"$f":"IF(H991*J991=0,\"\",ROUND(H991*J991,0))","v":""}]
[981,8,26,null,null,null,null,null,null,null,""]
[982,8,26,null,null,null,null,null,null,null,""]
[983,8,26,null,null,null,null,null,null,null,""]
[984,8,26,null,null,null,null,null,null,null,""]
[985,8,26,null,null,null,null,null,null,null,""]
[986,8,26,null,null,null,null,null,null,null,""]
[987,8,26,null,null,null,null,null,null,null,""]
[988,8,26,null,null,null,null,null,null,null,""]
[989,8,26,null,null,null,null,null,null,null,""]
[990,8,26,null,null,null,null,null,null,null,""]
[991,8,26,null,null,null,null,null,null,null,""]
[992,8,26,null,null,null,null,null,null,null,""]
[993,8,26,null,null,null,null,null,null,null,""]
[994,8,26,null,null,null,null,null,null,null,""]
[995,8,26,null,null,null,null,null,null,null,""]
[996,8,26,null,null,null,null,null,null,null,""]
[997,8,26,{"$f":"IF(SUM(B970:B1008)=312,0,1)","v":0},null,null,null,null,null,null,""]
[null,null,null,{"$f":"SUM(D12:D1008)","v":0}]

{"sheet":"請求書鑑","index":2,"n_rows":43,"n_cols":9,"rows_kept":43,"cut":false,"hidden":false,"merged":[[4,2,4,3],[39,4,39,5],[40,4,40,5],[0,7,0,8],[35,4,35,5],[36,4,36,5],[37,4,37,5],[38,4,38,5]]}
[null,null,null,null,null,null,null,{"$f":"IF(基礎データ!$C$15=\"\",\"年　 月　 日\",基礎データ!$C$15)","v":"年　 月　 日"}]
[]
[null,"清水建設株式会社　御中"]
[]
[null,null,{"$f":"IF(基礎データ!C16=\"\",\"\",基礎データ!C16)","v":""}]
[]
[null,"　　 下記のとおり、御請求いたします。"]
[]
[null,null,{"$f":"内訳データ!K3","v":0}]
[]
[null,"日付",{"$f":"内訳データ!F11","v":"品名・品番"},{"$f":"内訳データ!G11","v":"仕様"},"数量","単位","単価","金額（税抜）","税区分"]
[]
[]
[]
[]
[]
[]
[]
[]
[]
[]
[]
[]
[]
[]
[]
[]
[]
[]
[]
[]
[]
[]
[null,null,null,null,null,null,"小計",{"$f":"SUM(H12:H33)","v":0}]
[]
[null,null,null,null,"税抜金額",null,"消費税等","税込金額"]
[null,null,null,"請求金額　合計",{"$f":"SUM(E38:F41)","v":0},null,{"$f":"IF(内訳データ!H3=0,\"\",SUM(G38:G41))","v":""},{"$f":"SUM(H38:H41)","v":0}]
[null,null,null,"　うち税率8%　計",{"$f":"内訳データ!H4","v":0},null,{"$f":"内訳データ!J4","v":0},{"$f":"内訳データ!K4","v":0}]
[null,null,null,"　うち税率10%　計",{"$f":"内訳データ!H5","v":0},null,{"$f":"内訳データ!J5","v":0},{"$f":"内訳データ!K5","v":0}]
[null,null,null,"　うち税率8%軽減　計",{"$f":"内訳データ!H6","v":0},null,{"$f":"内訳データ!J6","v":0},{"$f":"内訳データ!K6","v":0}]
[null,null,null,"　うち税率0%　計",{"$f":"内訳データ!H7","v":0},null,{"$f":"IF(内訳データ!H7=0,\"\",0)","v":""},{"$f":"内訳データ!K7","v":0}]
[]
[null,"清水建設使用欄",null,null,null,null,null,null,"令和５年６月改訂書式"]

{"sheet":"請求書内訳","index":3,"n_rows":44,"n_cols":9,"rows_kept":44,"cut":false,"hidden":false,"merged":[]}
[]
[null,"日付",{"$f":"内訳データ!F11","v":"品名・品番"},{"$f":"内訳データ!G11","v":"仕様"},"数量","単位","単価","金額（税抜）","税区分"]
[]
[]
[]
[]
[]
[]
[]
[]
[]
[]
[]
[]
[]
[]
[]
[]
[]
[]
[]
[]
[]
[]
[]
[]
[]
[]
[]
[]
[]
[]
[]
[]
[]
[]
[]
[]
[]
[]
[]
[null,null,null,null,null,null,"小計",{"$f":"SUM(H3:H41)","v":0}]
[]
[null,"清水建設使用欄"]

{"sheet":"印座","index":4,"n_rows":4,"n_cols":4,"rows_kept":4,"cut":false,"hidden":true,"merged":[[2,2,3,2],[2,3,3,3],[2,4,3,4]]}
[]
[null,"会計口座","所属長","工事長・事務長"]
[null,{"$f":"IF(基礎データ!C17=\"\",\"\",基礎データ!C17)","v":""}]
[null,{"$f":"IF(基礎データ!C18=\"\",\"\",基礎データ!C18)","v":""}]

{"sheet":"支払先表示","index":5,"n_rows":10,"n_cols":6,"rows_kept":10,"cut":false,"hidden":true,"merged":[[7,3,7,5],[8,1,8,3],[9,1,9,3],[1,1,1,3],[2,3,2,5],[3,3,3,5],[4,3,4,5],[5,3,5,5],[6,3,6,5]]}
[]
[null,"支払先コード",null,null,"：",{"$f":"IF(基礎データ!C5=\"\",\"\",基礎データ!C5)","v":""}]
[null,"会社名","：",{"$f":"IF(基礎データ!C6=\"\",\"\",基礎データ!C6)","v":""}]
[null,null,null,{"$f":"IF(基礎データ!C7=\"\",\"\",基礎データ!C7)","v":""}]
[null,"〒","：",{"$f":"IF(基礎データ!C8=\"\",\"\",基礎データ!C8)","v":""}]
[null,"住所","：",{"$f":"IF(基礎データ!C9=\"\",\"\",基礎データ!C9)","v":""}]
[null,null,null,{"$f":"IF(基礎データ!C10=\"\",\"\",基礎データ!C10)","v":""}]
[null,"ＴＥＬ","：",{"$f":"IF(基礎データ!C11=\"\",\"\",基礎データ!C11)","v":""}]
[null,{"$f":"IF(基礎データ!C12=\"\",\"\",基礎データ!B12)","v":""},null,null,{"$f":"IF(基礎データ!C12=\"\",\"\",\"：\")","v":""},{"$f":"IF(基礎データ!C12=\"\",\"\",DBCS(基礎データ!C12))","v":""}]
[null,{"$f":"IF(基礎データ!B13=\"\",\"\",基礎データ!B13)","v":""},null,null,{"$f":"IF(基礎データ!B13=\"\",\"\",\"：\")","v":""},{"$f":"IF(基礎データ!C13=\"\",\"\",基礎データ!C13)","v":""}]